Cogmind - Beta 14 @@@ ROGUE MODE // 2024.11.18 @ 17:27:16 Player: Zane Result: Destroyed by Y-45 Defender with Beam Rifle Performance ------------- Evolutions (0) 0 Regions Visited (4) 800 Robots Destroyed (47) 235 Value Destroyed (1025) 1025 Prototype IDs (6) 120 Alien Tech Used (0) 0 Bonus (0) 0 TOTAL SCORE: 2180 Bonus ------- None Cogmind --------- Core Integrity 0/250 Matter 170/300 Energy 265/265 System Corruption 0% Temperature Cool (45) Movement Treading (160) Location -9/Recycling Parts ------- > --- POWER (1) -------- Improved Ion Engine > --- PROPULSION (2) --- Light Treads Light Treads > --- UTILITY (2) ------ Medium Storage Unit Seismic Detector > --- WEAPON (2) ------- Assault Rifle Battle Cannon > --- INVENTORY (10) --- Subdweller Power Source Light Treads Subdweller Monowheel Large Matter Pod (150) Subdweller Optics Light Armor Plating Makeshift Light Armor Plating Assault Rifle Rocket Launcher Enhanced Flamer Peak State ------------ > --- POWER ------------ Ion Engine > --- PROPULSION ------- Light Treads Light Treads > --- UTILITY ---------- Medium Storage Unit Makeshift Light Armor Plating > --- WEAPON ----------- Battle Cannon Rocket Launcher > --- INVENTORY -------- Subdweller Power Source Light Treads Large Matter Pod Subdweller Optics Seismic Detector Light Armor Plating Assault Rifle Assault Rifle Mining Laser Enhanced Flamer [Rating: 13] Favorites ----------- Power Ion Engine Engine Ion Engine Propulsion Light Treads Treads Light Treads Utility Seismic Detector Device Seismic Detector Storage Medium Storage Unit Protection Light Armor Plating Weapon Assault Rifle Ballistic Gun Assault Rifle Ballistic Cannon Battle Cannon Launcher Rocket Launcher Special Weapon Mining Laser Build | -11 -10 -10 -10 -9 ------- Run | Yrd Mat Min Sub Rec Slots Evolved . | . . . . . Power . | . . . . . Propulsion . | . . . . . Utility . | . . . . . Weapon . | . . . . . Parts Attached 37 | 7 14 3 10 3 Power 5 | 1 3 . . 1 Engine 5 | 1 3 . . 1 Core . | . . . . . Reactor . | . . . . . Propulsion 7 | 2 2 . 1 2 Treads 7 | 2 2 . 1 2 Leg . | . . . . . Wheel . | . . . . . Hover . | . . . . . Flight . | . . . . . Utility 13 | 2 6 3 2 . Device 5 | 1 . 3 1 . Storage 2 | 1 1 . . . Processor . | . . . . . Hackware . | . . . . . Protection 6 | . 5 . 1 . Artifact . | . . . . . Weapon 12 | 2 3 . 7 . Energy Gun . | . . . . . Energy Cannon . | . . . . . Ballistic Gun 7 | 2 3 . 2 . Ballistic Cannon 2 | . . . 2 . Launcher 1 | . . . 1 . Special Weapon 2 | . . . 2 . Impact Weapon . | . . . . . Slashing Weapon . | . . . . . Piercing Weapon . | . . . . . Special Melee Weapon . | . . . . . Unidentified Prototypes . | . . . . . Parts Lost 2 | . 1 . . 1 Power 1 | . . . . 1 Propulsion 1 | . 1 . . . Utility . | . . . . . Weapon . | . . . . . Highest Loss Streak 1 | . 1 . . 1 To Critical Strikes . | . . . . . Average Slot Usage (%) 99 | . 97 100 100 99 Engine 13 | . 14 14 14 13 Treads 27 | . 25 28 28 28 Device 9 | . 4 13 10 14 Storage 14 | . 14 14 14 14 Protection 4 | . 9 . 3 . Ballistic Gun 25 | . 28 28 18 14 Ballistic Cannon 2 | . . . 7 14 Peak Build Rating 13 | 7 8 8 13 10 Average Rating 7 | 4 6 8 9 9 On Entrance 6 | . 7 8 8 9 Naked Turns . | . . . . . Heaviest Build 26 | 13 22 22 26 23 Greatest Support 40 | 40 40 40 40 40 Greatest Overweight (x) . | . . . . . Average Overweight (x) . | . . . . . Largest Inventory Capacity 10 | 8 10 10 10 10 Average Capacity 9 | 7 8 10 10 10 Most Carried 10 | 6 10 10 10 10 Average Carried 9 | 3 7 10 9 10 Final Capacity 10 | 8 10 10 10 10 Final Carried 10 | 4 10 10 10 10 Class Distribution -------------------- 97% | Mutant Dominant Class ---------------- Mutant | -10/Materials Mutant | -10/Mines Mutant | -10/Subcaves Scavenger-Mutant | -9/Recycling Resources | -11 -10 -10 -10 -9 ----------- Run | Yrd Mat Min Sub Rec Matter Collected 1500 | 149 754 259 290 48 Remotely . | . . . . . Salvage Created 1487 | 51 850 314 48 224 Parts 102 | 5 58 24 6 9 Haulers Intercepted 2 | . 2 . . . Recyclers Shooed 5 | . 2 2 . 1 Parts Field Recycled . | . . . . . Retrieved Matter . | . . . . . Parts Self-Destructed 13 | . . . 13 . Prevented . | . . . . . Kills | -11 -10 -10 -10 -9 ------- Run | Yrd Mat Min Sub Rec Combat Hostiles Destroyed 32 | . 20 8 2 2 Guns 28 | . 20 8 . . Cannons 4 | . . . 2 2 Classes Destroyed 11 | 1 6 1 2 1 Worker 2 | . 2 . . . Tunneler 2 | 2 . . . . Hauler 2 | . 2 . . . Recycler 4 | . . 2 . 2 Operator 1 | . 1 . . . Turret 2 | . . . 2 . Watcher 2 | . 2 . . . Swarmer 12 | . 6 6 . . Grunt 16 | . 14 2 . . Sentry 2 | . . . . 2 Subdweller 2 | . . . 2 . Best Kill Streak 4 | 2 4 3 2 3 Combat Bots Only 4 | . 4 3 1 1 Max Kills in Single Turn 2 | 1 1 2 1 1 Gunslinging 1 | . . 1 . . Exploded . | . . . . . Melee . | . . . . . Uniques/NPCs Destroyed . | . . . . . Combat | -11 -10 -10 -10 -9 -------- Run | Yrd Mat Min Sub Rec Hostile Shots Fired 173 | . 97 40 20 16 Missed 38 | . 17 7 12 2 Damage Taken 1568 | . 853 303 207 205 Core 261 | . 136 58 22 45 Absorbed by Shields . | . . . . . Regen/Repaired (Parts) 113 | . 113 . . . Core Remaining (%) 100 | 100 . . . . Volleys Fired 147 | 5 91 21 18 12 Largest 2 | 2 2 2 2 2 Hottest 100 | 40 40 40 100 59 Shots Fired 287 | 10 182 42 29 24 Gun 250 | 10 182 42 4 12 Cannon 23 | . . . 11 12 Launcher 7 | . . . 7 . Special 7 | . . . 7 . Kinetic 273 | 10 182 42 15 24 Thermal 7 | . . . 7 . Explosive 7 | . . . 7 . Electromagnetic . | . . . . . Robot Hit Streak 14 | 2 11 10 6 14 Robot Miss Streak 7 | 2 7 3 1 2 Penetration Max . | . . . . . Secondary Targets 1 | . . 1 . . Max Gunslinging Chain 1 | . . 1 . . Shots Hit Robots 181 | 5 118 27 11 20 Core Hits 78 | 2 48 14 7 7 Critical Kills . | . . . . . Critical Parts Destroyed . | . . . . . Critical Strikes 3 | . . . . 3 Blast 3 | . . . . 3 Melee Attacks . | . . . . . Impact . | . . . . . Slashing . | . . . . . Piercing . | . . . . . Sneak Attacks . | . . . . . Combat Hostiles . | . . . . . Follow-up Attacks . | . . . . . Damage Inflicted 2623 | 64 1555 348 323 333 Guns 2126 | 64 1538 348 42 134 Cannons 341 | . . . 142 199 Explosions 139 | . . . 139 . Melee . | . . . . . Ramming 17 | . 17 . . . Kinetic 2467 | 64 1538 348 184 333 Thermal . | . . . . . Explosive 139 | . . . 139 . Electromagnetic . | . . . . . Impact . | . . . . . Slashing . | . . . . . Piercing . | . . . . . Highest Corruption . | . . . . . Average Corruption . | . . . . . Corruption Purged . | . . . . . Corruption Blocked . | . . . . . Overload Shots . | . . . . . Overflow Damage . | . . . . . Projectiles . | . . . . . Explosions . | . . . . . Melee . | . . . . . Knockbacks 1 | . . . 1 . Impact . | . . . . . Kinetic 1 | . . . 1 . Secondary . | . . . . . Self-Inflicted Damage 40 | . . . 40 . Shots 1 | . . . 1 . Rammed 6 | . 6 . . . Targets Rammed 7 | . 7 . . . Kicked . | . . . . . Crushed 1 | . 1 . . . Highest Temperature 23 | . 8 23 . 18 Average Temperature 7 | . 2 15 . 9 Received Heat Transfer 531 | . 354 57 30 90 Siege Activations . | . . . . . Robots Corrupted . | . . . . . Combat Hostiles . | . . . . . Parts Fried . | . . . . . Impact Corruptions . | . . . . . Robots Melted . | . . . . . Combat Hostiles . | . . . . . Parts Melted . | . . . . . Heat Transferred . | . . . . . Parts Sabotaged . | . . . . . Parts Stolen . | . . . . . Parts Stripped . | . . . . . Power Chain Reactions . | . . . . . Alert | -11 -10 -10 -10 -9 ------- Run | Yrd Mat Min Sub Rec Peak Influence 395 | 10 395 256 . 50 Initial 126 | . 6 126 . . Average 132 | 1 207 75 . 40 Maximum Alert Level 1 | . 1 1 . . Low Security (%) 66 | 100 38 89 . 100 Level 1 33 | . 61 10 . . Level 2 . | . . . . . Level 3 . | . . . . . Level 4 . | . . . . . Level 5 . | . . . . . High Security . | . . . . . Max Security . | . . . . . Squads Dispatched 4 | . 4 . . . Investigation 2 | . 2 . . . Extermination . | . . . . . Reinforcement 2 | . 2 . . . Assault . | . . . . . Garrison . | . . . . . Intercept . | . . . . . Searches Triggered . | . . . . . Construction Impeded . | . . . . . Haulers Reinforced . | . . . . . Active Scanning Responses . | . . . . . Cargo Convoy Interrupts . | . . . . . Stealth | -11 -10 -10 -10 -9 --------- Run | Yrd Mat Min Sub Rec Distress Signals 2 | . 2 . . . Communications Jammed . | . . . . . Distress Signals . | . . . . . Times Spotted 67 | . 45 8 11 3 Peak Tracking Total 6 | . 5 3 6 1 Tactical Retreats 7 | . 6 . 1 . Traps | -11 -10 -10 -10 -9 ------- Run | Yrd Mat Min Sub Rec Traps Triggered 4 | . 2 . 2 . Indirectly . | . . . . . Trap Hack Attempts . | . . . . . Triggered . | . . . . . Disarmed 1 | . 1 . . . Reprogrammed . | . . . . . Reused . | . . . . . Traps Extracted . | . . . . . Installed . | . . . . . Triggered . | . . . . . Machines | -11 -10 -10 -10 -9 ---------- Run | Yrd Mat Min Sub Rec Machines Disabled 2 | . . . 2 . Max in Single Turn 2 | . . . 2 . Machines Repaired . | . . . . . Machines Dismantled . | . . . . . Machines Sabotaged . | . . . . . Overloaded Fab Kills . | . . . . . Hacking | -11 -10 -10 -10 -9 --------- Run | Yrd Mat Min Sub Rec Machines Accessed 9 | . 7 . . 2 Terminals 8 | . 6 . . 2 Fabricators . | . . . . . Repair Stations 1 | . 1 . . . Recycling Units . | . . . . . Scanalyzers . | . . . . . Garrison Access . | . . . . . Total Hacks 26 | . 21 . . 5 Successful 16 | . 14 . . 2 Failed 10 | . 7 . . 3 Catastrophic 3 | . 1 . . 2 Database Lockouts . | . . . . . Manual 2 | . . . . 2 Terminals 23 | . 18 . . 5 Fabricators . | . . . . . Repair Stations 3 | . 3 . . . Recycling Units . | . . . . . Scanalyzers . | . . . . . Garrison Access . | . . . . . Terminal Hacks 14 | . 12 . . 2 Prototype ID Bank 4 | . 3 . . 1 Emergency Access Points 1 | . 1 . . . Locate Traps 3 | . 3 . . . Disarm Traps 1 | . 1 . . . Hauler Manifests 1 | . 1 . . . Registered Prototypes 1 | . 1 . . . Zone Layout 3 | . 2 . . 1 Fabricator Hacks . | . . . . . Repair Station Hacks 2 | . 2 . . . Scan Component 1 | . 1 . . . Repair 1 | . 1 . . . Recycling Unit Hacks . | . . . . . Scanalyzer . | . . . . . Garrison Access Hacks . | . . . . . Unauthorized Hacks . | . . . . . Terminals . | . . . . . Fabricators . | . . . . . Repair Stations . | . . . . . Recycling Units . | . . . . . Scanalyzers . | . . . . . Garrison Access . | . . . . . Data Cores Recovered . | . . . . . Used . | . . . . . Hacking Detections 7 | . 5 . . 2 Full Trace Events . | . . . . . Feedback Events . | . . . . . Feedback Blocked . | . . . . . Robot Schematics Acquired . | . . . . . Robots Built . | . . . . . Authchips . | . . . . . Time . | . . . . . Total Robot Build Rating . | . . . . . Part Schematics Acquired . | . . . . . Parts Built . | . . . . . Authchips . | . . . . . Time . | . . . . . Total Part Build Rating . | . . . . . Parts Repaired 1 | . 1 . . . Time 26 | . 26 . . . Parts Recycled . | . . . . . Recycled Matter . | . . . . . Retrieved Matter . | . . . . . Retrieved Components . | . . . . . Parts Scanalyzed . | . . . . . Part Schematics Acquired . | . . . . . Parts Damaged . | . . . . . Bothacking | -11 -10 -10 -10 -9 ------------ Run | Yrd Mat Min Sub Rec Used RIF Installer . | . . . . . Robots Hacked . | . . . . . Non-combat . | . . . . . Combat . | . . . . . Robot Hacks Applied . | . . . . . Relay Couplers Released . | . . . . . Fabnet Peak Effective % . | . . . . . Robots Rewired . | . . . . . Allies Hacked . | . . . . . Hacks Repelled . | . . . . . Allies | -11 -10 -10 -10 -9 -------- Run | Yrd Mat Min Sub Rec Total Allies . | . . . . . Largest Group . | . . . . . Highest-Rated Group . | . . . . . Highest-Rated Ally . | . . . . . Total Orders . | . . . . . Ally Attacks . | . . . . . Total Damage . | . . . . . Kills . | . . . . . Allies Corrupted . | . . . . . Allies Melted . | . . . . . Intel | -11 -10 -10 -10 -9 ------- Run | Yrd Mat Min Sub Rec Robot Analysis Total . | . . . . . Derelict Logs Recovered 2 | . . 1 1 . Drone Launches . | . . . . . Drone Recoveries . | . . . . . Exploration | -11 -10 -10 -10 -9 ------------- Run | Yrd Mat Min Sub Rec Turns Passed 4160 | 97 1553 1528 813 169 Spaces Moved 1808 | 46 677 558 446 81 Core 5 | 5 . . . . Treads 1803 | 41 677 558 446 81 Legs . | . . . . . Wheels . | . . . . . Hover . | . . . . . Flight . | . . . . . Fastest Speed 50 | 50 160 160 160 160 Average Speed 159 | 148 160 160 160 160 Slowest Speed 160 | 160 160 160 160 160 Overloaded Moves . | . . . . . Propulsion Burnouts . | . . . . . Robots Hopped . | . . . . . Cave-ins Triggered . | . . . . . Exploration Rate (%) 49 | 4 90 99 31 25 Regions Visited 4 Branch Regions 3 Pre-discovered Areas . | . . . . . Known Exits Taken 1 | . . . 1 . Unknown Exits Taken 3 | 1 1 1 . . Scrap Searched 4 | . . 1 3 . Spaces Dug . | . . . . . Terrain Destroyed 61 | . . . 61 . Melee . | . . . . . Projectile . | . . . . . AOE 61 | . . . 61 . Terrain Rammed . | . . . . . Walls Destroyed . | . . . . . Machines Disabled . | . . . . . Actions | -11 -10 -10 -10 -9 --------- Run | Yrd Mat Min Sub Rec Total 2778 | 63 969 1151 497 98 Wait 728 | . 147 568 13 . Move 1804 | 45 676 557 445 81 Hop . | . . . . . Pick Up 27 | 6 15 1 5 . Fast Attach 9 | 5 2 . 1 1 Attach 2 | 2 . . . . Detach . | . . . . . Swap 26 | . 12 3 9 2 Drop 28 | . 19 1 6 2 Fire 147 | 5 91 21 18 12 Melee . | . . . . . Ram . | . . . . . Kick . | . . . . . Crush 7 | . 7 . . . Escape Stasis . | . . . . . Rewire . | . . . . . Trap . | . . . . . Miscellaneous . | . . . . . Route ------- -11/Scrapyard -10/Materials (discovered 4 exits: [*Mat x2] / [*Min x2]) -10/Mines (discovered 3 exits: [*Mat x2] / [*Sub]) -10/Subcaves -9/Recycling History --------- Turn | Location | Event 8 | -11/Scrapyard | Discovered new exit (range 15) 98 | -11/Scrapyard | Entered Materials 191 | -10/Materials | Discovered new exit (range 8) 305 | -10/Materials | Build established: Mutant 571 | -10/Materials | Discovered new exit (range 12) 574 | -10/Materials | Discovered new exit (range 18) 855 | -10/Materials | Discovered new exit (range 17) 1140 | -10/Materials | Core integrity fell below 50% 1506 | -10/Materials | Repaired Lgt. Treads 1651 | -10/Materials | Entered Mines 1712 | -10/Mines | Found a hidden stash of uninstalled traps 2541 | -10/Mines | Discovered new exit (range 3) 2597 | -10/Mines | Discovered new exit (range 13) 2604 | -10/Mines | Received a Rocket Launcher from a helpful Derelict 2656 | -10/Mines | Discovered new exit (range 9) 2719 | -10/Mines | Learned location of 1 exit from Materials 3179 | -10/Mines | Entered Subcaves 3337 | -10/Subcaves | A swath of the cavern ceiling suddenly collapsed 3403 | -10/Subcaves | A swath of the cavern ceiling suddenly collapsed 3446 | -10/Subcaves | Identified exit to Recycling 3600 | -10/Subcaves | Core integrity fell below 20% 3942 | -10/Subcaves | Ambushed by Subdweller buried in earth 3992 | -10/Subcaves | Entered Recycling 4161 | -9/Recycling | Destroyed by Y-45 Defender with Beam Rifle Last Messages --------------- Unit. 04051_ R-06 Scavenger collects Com. Wheel. 04054_ Dropped Lgt. Treads. 04055_ R-06 Scavenger collects Lgt. Ion Engine. 04074_ Connecting with Terminal... >>Prototypes Downloading prototype IDs... Imp. EM Shotgun Hvy. EM Shotgun 04080_ R-06 Scavenger inserts Sml. Storage Unit into recycling unit. 04117_ Connecting with Terminal... >>Layout(Zone) Retrieving Zone 4A layout... Downloaded map data. 04117_ Connecting with Terminal... 04153_ Y-45 Defender springs to life. 04157_ Y-45 Defender Hvy. Assault Rifle blasted off. 04161_ Critical hit (Burn: +37). Map ----- +----------------------------------------------------+ | ????????###????????###??????????????????????????? | | ????##### ##########%#########+####?????????????? | | ????# % %% ????????????? | | ????# %%* ????????????? | | ????# = ????????????? | | ????######+##### ###+########???????????????????? | | ???????? !??# ## #????????????????????????? | | ??????# # ## #????????????????????????? | | ??????# # ## #????????????????????????? | | ??????# [ # ## #????????????????????????? | | ??????# ! # + #????????????????????????? | | ??????# %# ## #????????????????????????? | | ??????#! = # ## #????????????????????????? | | ??????# # ?# #????????????????????????? | | ??????#! % # ## #????????????????????????? | | ??????#######+## ## "" #????????????????????????? | | ????????????# ## T" #????????????????????????? | | ????????????# ## "" #????????????????????????? | | ????????#"Y"# ## #????????????????????????? | | ?????????? ##+####????????????????????????? | | ??###########??# #???????????????????????????? | | ??#[ ] = ??# #???????????????????????????? | | ??# ] ?# ######??????????????????????? | | ??# =?# ##"""#??????????????????????? | | ??# # ##"Y"#####+##???????????????? | | ??# ] # @ u #???????????? | | ??# ! %+ % #???????????? | | ??# ! # #???????????? | | ??# ] ###+#+####Y####+######???????????? | | ??# ! #?# #### #????????????? | | ??# #?# #??# #????????????? | | ??# #?# """ #??# #????????????? | | ??# #?# """ #??# #????????????? | | ??##############?# """ #??# #????????????? | | ?????????????????# #??# ????????????? | | ?????????????????# """ #??# #????????????? | | ?????????????????# """ #??# #????????????? | | ?????????????????# """ #??# #????????????? | | ?????????????????# #??##########????????????? | | ?????????????????# #????????????????????????? | | ?????????????????# #????????????????????????? | | ?????????????????# #????????????????????????? | | ?????????????????# "T" #????????????????????????? | | ?????????????????# """ #????????????????????????? | | ?????????????????#######????????????????????????? | | ????????????????????????????????????????????????? | | ????????????????????????????????????????????????? | | ????????????????????????????????????????????????? | | ????????????????????????????????????????????????? | | ????????????????????????????????????????????????? | +----------------------------------------------------+ Best States ------------- Heat Dissipation 25 Energy Generation 12 Energy Capacity 265 Matter Stores 300 Matter Capacity 300 Sight Range 16 Terrain Scan Density 10 Armor Coverage 150 Evasion (%) 40 Recoil Reduction 2 Item Schematics ----------------- None Robot Schematics ------------------ None Fabricated ------------ Nothing Alien Tech Used ----------------- None Achievements -------------- None Challenges ------------ None Game ------ Seed AdvancedAlertMinigun Manual? 0 Play Time 00:30:55 Cumulative 28.2 hours Start 2024.11.18 @ 16:53:31 End 2024.11.18 @ 17:27:16 Sessions 1 Manual Loads 0 Difficulty Rogue Special Mode None Game No. 39 Rogue 39 Adventurer 0 Explorer 0 Win Type - Total 0 Types 0/0/0/0/0/0/0/0/0 Lore% 28 Gallery% 31 Achievement% 25 Wizard Run 0 Options --------- Layout 1 ASCII 0 Keyboard 0 Movement Numpad Keybinds 0 Fullscreen 1 Font 24/Smallcaps Map View 50x35 Zoom Use 0% Tactical HUD 1 Map Filters NONE Filters NONE Steam 1 RUN: f43421df-bf41-4631-beea-4a9f77fb8464